fUSD/lending_fUSD_20251201
["ID","MTS","AMOUNT","RATE_DAILY","PERIOD"]
[395294421,1764591044731,-16182.81015374,0.00017,2]
[395294425,1764591045418,-410.39994,0.00017,2]
[395294426,1764591045736,-1211.55404391,0.000159,2]
[395294427,1764591045745,-620.40595609,0.00017,2]
[395294428,1764591045756,-200809.43905748,0.00017,2]
[395294429,1764591045791,-400.41648,0.00017,2]
[395294430,1764591045802,-360.20654654,0.00017,2]
[395294431,1764591045813,-292946.46356571,0.00017,2]
[395294432,1764591045847,-1258.52308385,0.00017,2]
[395294511,1764591167379,-396.90339991,0.00012873,2]
[395294543,1764591901502,-231.27484438,0.00014435,3]
[395294544,1764591903527,-300.0,0.00014435,3]
[395294545,1764591904599,-276.20924308,0.00014435,3]
[395294546,1764591906626,-160.63903389,0.00014435,3]
[395294547,1764591931416,-30.87687865,0.00014435,3]
[395294548,1764591931439,-133.81017322,0.00014563,2]
[395294549,1764591933375,-166.18982678,0.00014563,2]
[395294550,1764591933400,-60.45458417,0.00014563,2]
[395294587,1764592021984,-147.54541583,0.00014563,2]
[395294588,1764592022006,-300.0,0.00014771,2]
[395294589,1764592022028,-120.03659387,0.00014771,2]
[395294590,1764592024046,-179.96340613,0.00014771,2]
[395294591,1764592024070,-18.48824825,0.00014771,2]
[395294602,1764592036420,-181.64569443,0.00014771,2]
[395294606,1764592081955,-99.86605732,0.00014771,2]
[395294607,1764592081978,-400.13394268,0.00014867,2]
[395294609,1764592084039,-500.0,0.00014867,2]
[395294612,1764592096473,-299.86605732,0.00014867,2]
[395294613,1764592096494,-2.13394268,0.00014867,2]
[395294614,1764592098549,-302.0,0.00014867,2]
[395294615,1764592099956,-337.96386651,0.00014867,2]
[395294622,1764592111440,-166.82,0.00014867,2]
[395294623,1764592113451,-281.13378765,0.00014867,2]
[395294624,1764592117008,-109.94840316,0.00014867,2]
[395294625,1764592117031,-300.0,0.00014867,2]
[395294626,1764592117053,-90.05159684,0.00014868,2]
[395294627,1764592118644,-201.43310583,0.00014868,2]
[395294628,1764592122378,-8.51529733,0.00014868,2]
[395294629,1764592122400,-224.69724167,0.00014868,2]
[395294630,1764592124082,-426.52691608,0.00014868,2]
[395294631,1764592126053,-321.92752616,0.00014868,2]
[395294632,1764592128044,-426.11966787,0.00014868,2]
[395294633,1764592130126,-375.24886067,0.00014868,2]
[395294644,1764592217130,-189.33869252,0.00014768,2]
[395294645,1764592217152,-38.0404511,0.00014768,2]
[395294646,1764592219134,-171.9595489,0.00014768,2]
[395294647,1764592219156,-128.0404511,0.00014858,2]
[395294648,1764592220606,-274.75535592,0.00014858,2]
[395294655,1764592231726,-151.0,0.00014865,2]
[395294656,1764592231735,-480.0,0.00014867,2]
[395294657,1764592231747,-300.0,0.00014867,2]
[395294658,1764592231756,-300.0,0.00014867,2]
[395294659,1764592231765,-460.15551757,0.00014867,2]
[395294660,1764592231837,-39.84448243,0.00014867,2]
[395294661,1764592231846,-500.0,0.00014867,2]
[395294662,1764592231855,-500.0,0.00014867,2]
[395294663,1764592231864,-500.0,0.00014867,2]
[395294664,1764592231874,-583.91979627,0.00014867,2]
[395294665,1764592231883,-243.91166984,0.00014867,2]
[395294666,1764592231892,-7247.234729,0.00014868,2]
[395294667,1764592231904,-11817.29131507,0.00014868,2]
[395294668,1764592231917,-1198.38471516,0.00014868,2]
[395294669,1764592231926,-2491.4269,0.00014868,2]
[395294670,1764592231936,-3822.6793,0.00014868,2]
[395294671,1764592231945,-2489.14753388,0.00014868,2]
[395294678,1764592233035,-289.19297102,0.00014868,2]
[395294679,1764592234643,-500.0,0.00014868,2]
[395294682,1764592237896,-164.37742791,0.00014868,2]
[395294683,1764592237980,-756557.28206719,0.00014868,2]
[395294684,1764592237990,-300.0,0.00014883,2]
[395294685,1764592238000,-225.39616974,0.000149,2]
[395294686,1764592238010,-328.59727827,0.00014913,2]
[395294687,1764592238019,-200.0,0.0001496,2]
[395294688,1764592238028,-200.0,0.0001496,2]
[395294689,1764592238037,-151.0,0.0001496,2]
[395294690,1764592238048,-151.0,0.0001496,2]
[395294691,1764592238058,-151.0,0.0001496,2]
[395294692,1764592238067,-151.0,0.0001496,2]
[395294693,1764592238077,-151.0,0.0001496,2]
[395294694,1764592238086,-151.0,0.0001496,2]
[395294695,1764592238096,-151.0,0.0001496,2]
[395294697,1764592238106,-151.0,0.0001496,2]
[395294699,1764592238115,-151.0,0.0001496,2]
[395294701,1764592238124,-151.0,0.0001496,2]
[395294702,1764592238134,-151.0,0.0001496,2]
[395294703,1764592238143,-151.0,0.0001496,2]
[395294704,1764592238153,-151.0,0.0001496,2]
[395294705,1764592238163,-151.0,0.0001496,2]
[395294706,1764592238172,-151.0,0.0001496,2]
[395294707,1764592238181,-200.0,0.0001496,2]
[395294709,1764592238191,-500.0,0.0001496,2]
[395294710,1764592238200,-442.71974365,0.0001496,2]
[395294711,1764592238210,-500.0,0.00014968,2]
[395294712,1764592238220,-500.0,0.00014968,2]
[395294713,1764592238229,-500.0,0.00014968,2]
[395294714,1764592238238,-500.0,0.00014968,2]
[395294715,1764592238248,-500.0,0.00014968,2]
[395294716,1764592238258,-500.0,0.00014968,2]
[395294717,1764592238267,-500.0,0.00014968,2]
[395294718,1764592238276,-500.0,0.00014968,2]
[395294719,1764592238286,-500.0,0.00014968,2]
[395294720,1764592238295,-500.0,0.00014968,2]
[395294721,1764592238304,-500.0,0.00014968,2]
[395294722,1764592238314,-500.0,0.00014968,2]
[395294723,1764592238323,-500.0,0.00014968,2]
[395294724,1764592238332,-500.0,0.00014968,2]
[395294725,1764592238342,-500.0,0.00014968,2]
[395294726,1764592238351,-500.0,0.00014968,2]
[395294727,1764592238361,-500.0,0.00014968,2]
[395294728,1764592238371,-500.0,0.00014968,2]
[395294729,1764592238380,-500.0,0.00014968,2]
[395294730,1764592238389,-500.0,0.00014968,2]
[395294731,1764592238398,-500.0,0.00014968,2]
[395294732,1764592238408,-500.0,0.00014968,2]
[395294733,1764592238417,-628.88445166,0.00014968,2]
[395294734,1764592238426,-1410.86,0.00014968,2]
[395294735,1764592238436,-500.0,0.00014968,2]
[395294736,1764592238445,-500.0,0.00014968,2]
[395294737,1764592238454,-500.0,0.00014968,2]
[395294738,1764592238463,-2889.72,0.00014968,2]
[395294739,1764592238473,-177.089,0.00014968,2]
[395294740,1764592238482,-1190.72,0.00014968,2]
[395294741,1764592238493,-1190.72,0.00014968,2]
[395294742,1764592238502,-1190.72,0.00014968,2]
[395294743,1764592238512,-500.0,0.00014968,2]
[395294744,1764592238525,-500.0,0.00014968,2]
[395294745,1764592238535,-434.2840336,0.00014968,2]
[395294746,1764592238544,-500.0,0.00014968,2]
[395294747,1764592238553,-500.0,0.00014968,2]
[395294748,1764592238562,-500.0,0.00014968,2]
[395294749,1764592238571,-500.0,0.00014968,2]
[395294750,1764592238581,-500.0,0.00014968,2]
[395294751,1764592238590,-500.0,0.00014968,2]
[395294752,1764592238599,-500.0,0.00014968,2]
[395294753,1764592238608,-500.0,0.00014968,2]
[395294754,1764592238618,-500.0,0.00014968,2]
[395294755,1764592238628,-500.0,0.00014968,2]
[395294756,1764592238638,-500.0,0.00014968,2]
[395294757,1764592238647,-500.0,0.00014968,2]
[395294758,1764592238656,-522.82513795,0.00014968,2]
[395294759,1764592238666,-500.0,0.00014968,2]
[395294760,1764592238675,-500.0,0.00014968,2]
[395294761,1764592238685,-500.0,0.00014968,2]
[395294762,1764592238694,-500.0,0.00014968,2]
[395294763,1764592238704,-500.0,0.00014968,2]
[395294764,1764592238714,-500.0,0.00014968,2]
[395294765,1764592238723,-500.0,0.00014968,2]
[395294766,1764592238733,-500.0,0.00014968,2]
[395294767,1764592238742,-300.0,0.00014968,2]
[395294768,1764592238752,-300.0,0.00014968,2]
[395294769,1764592238761,-300.0,0.00014968,2]
[395294770,1764592238770,-349.89110636,0.00014968,2]
[395294771,1764592238779,-150.99,0.00014968,2]
[395294772,1764592238788,-3901.42886975,0.00014999,2]
[395294773,1764592238797,-770.98935679,0.00015,2]
[395294774,1764592238806,-1192.8279898,0.00015,2]
[395294775,1764592238815,-222399.94235761,0.00015,4]
[395294776,1764592238824,-10006.51407668,0.00015,2]
[395294777,1764592238834,-161876.7764963,0.00015005,2]
[395294778,1764592238843,-19064.52604398,0.00015094,2]
[395294779,1764592238852,-1410.86,0.00015242,2]
[395294780,1764592238862,-810.0,0.0001529,2]
[395294781,1764592238871,-1517.64,0.000153,2]
[395294782,1764592238881,-9999.99,0.0001531,2]
[395294783,1764592238890,-151.0,0.00015316,2]
[395294784,1764592238899,-19064.52604398,0.0001532,2]
[395294785,1764592238909,-1337.0,0.0001532,2]
[395294786,1764592238920,-13856.4797207,0.000154,2]
[395294787,1764592238929,-504.59701012,0.000154,2]
[395294788,1764592238939,-300.0,0.00015447,2]
[395294789,1764592238948,-10000.0,0.00015447,2]
[395294790,1764592238958,-2500.0,0.00015447,2]
[395294791,1764592238968,-194.72792766,0.00015447,2]
[395294792,1764592238977,-3814.9816296,0.00015447,2]
[395294793,1764592238986,-10000.0,0.00015447,2]
[395294794,1764592238996,-2500.0,0.00015447,2]
[395294795,1764592239006,-2458.72839442,0.00015447,2]
[395294796,1764592239016,-3476.15946739,0.00015447,2]
[395294797,1764592239025,-514.84070869,0.00015447,2]
[395294798,1764592239035,-151.0,0.00015447,2]
[395294799,1764592239045,-151.0,0.00015447,2]
[395294800,1764592239055,-151.0,0.00015447,2]
[395294801,1764592239064,-151.0,0.00015447,2]
[395294802,1764592239074,-8000.0,0.00015447,2]
[395294803,1764592239084,-4000.0,0.00015447,2]
[395294804,1764592239094,-250.0,0.00015447,2]
[395294805,1764592239104,-578.20924308,0.00015447,2]
[395294806,1764592239114,-160.0,0.00015447,2]
[395294807,1764592239124,-500.0,0.00015447,2]
[395294808,1764592239134,-500.0,0.00015447,2]
[395294809,1764592239144,-1000.0,0.00015447,2]
[395294810,1764592239153,-500.0,0.00015447,2]
[395294811,1764592239164,-1000.0,0.00015447,2]
[395294812,1764592239174,-500.0,0.00015447,2]
[395294813,1764592239184,-1000.0,0.00015447,2]
[395294814,1764592239194,-500.0,0.00015447,2]
[395294815,1764592239204,-1000.0,0.00015447,2]
[395294816,1764592239213,-311.1,0.00015447,2]
[395294817,1764592239223,-1000.0,0.00015447,2]
[395294818,1764592239232,-500.0,0.00015447,2]
[395294819,1764592239242,-1000.0,0.00015447,2]
[395294820,1764592239251,-1000.0,0.00015447,2]
[395294821,1764592239261,-500.0,0.00015447,2]
[395294822,1764592239270,-1000.0,0.00015447,2]
[395294823,1764592239279,-1000.0,0.00015447,2]
[395294824,1764592239289,-560.21662389,0.00015447,2]
[395294825,1764592239298,-425.21848428,0.00015447,2]
[395294826,1764592239307,-530.83383746,0.00015447,2]
[395294827,1764592239316,-1000.0,0.00015447,2]
[395294828,1764592239326,-1000.0,0.00015447,2]
[395294829,1764592239335,-1000.0,0.00015447,2]
[395294830,1764592239345,-1000.0,0.00015447,2]
[395294831,1764592239354,-1000.0,0.00015447,2]
[395294832,1764592239363,-1000.0,0.00015447,2]
[395294833,1764592239373,-234.67943684,0.00015447,2]
[395294834,1764592239383,-151.0,0.00015447,2]
[395294835,1764592239393,-2750.0,0.00015447,2]
[395294836,1764592239402,-620.0,0.00015447,2]
[395294837,1764592239411,-194.72792767,0.00015447,2]
[395294838,1764592239421,-1500.0,0.00015447,2]
[395294839,1764592239429,-248.71531821,0.00015447,2]
[395294840,1764592239438,-312.0,0.00015447,2]
[395294841,1764592239447,-3000.0,0.00015447,2]
[395294842,1764592239456,-3000.0,0.00015447,2]
[395294843,1764592239465,-3000.0,0.00015447,2]
[395294844,1764592239473,-3000.0,0.00015447,2]
[395294845,1764592239483,-3000.0,0.00015447,2]
[395294846,1764592239492,-3000.0,0.00015447,2]
[395294847,1764592239501,-3000.0,0.00015447,2]
[395294848,1764592239510,-3000.0,0.00015447,2]
[395294849,1764592239523,-3000.0,0.00015447,2]
[395294850,1764592239532,-3000.0,0.00015447,2]
[395294851,1764592239541,-3000.0,0.00015447,2]
[395294852,1764592239549,-3000.0,0.00015447,2]
[395294853,1764592239558,-3000.0,0.00015447,2]
[395294854,1764592239569,-3000.0,0.00015447,2]
[395294855,1764592239578,-500.0,0.00015447,2]
[395294856,1764592239587,-500.0,0.00015447,2]
[395294857,1764592239597,-500.0,0.00015447,2]
[395294858,1764592239606,-500.0,0.00015447,2]
[395294859,1764592239615,-500.0,0.00015447,2]
[395294860,1764592239624,-500.0,0.00015447,2]
[395294861,1764592239633,-500.0,0.00015447,2]
[395294862,1764592239642,-500.0,0.00015447,2]
[395294863,1764592239651,-500.0,0.00015447,2]
[395294864,1764592239660,-500.0,0.00015447,2]
[395294865,1764592239670,-500.0,0.00015447,2]
[395294866,1764592239679,-500.0,0.00015447,2]
[395294867,1764592239688,-500.0,0.00015447,2]
[395294869,1764592239697,-500.0,0.00015447,2]
[395294871,1764592239706,-500.0,0.00015465,2]
[395294873,1764592239716,-495.0,0.00015466,2]
[395294875,1764592239725,-355.2954588,0.00015468,2]
[395294877,1764592239734,-1000.0,0.0001549,2]
[395294880,1764592239744,-65755.8354646,0.000155,2]
[395294882,1764592239753,-2750.0,0.00015502,2]
[395294884,1764592239763,-200.0,0.00015508,2]
[395294887,1764592239772,-151.0,0.00015508,2]
[395294888,1764592239781,-200.0,0.00015508,2]
[395294891,1764592239791,-500.0,0.00015508,2]
[395294892,1764592239800,-1410.86,0.00015516,2]
[395294894,1764592239809,-28431.07762728,0.00015537,2]
[395294896,1764592239819,-19064.52604398,0.00015545,2]
[395294898,1764592239829,-2750.0,0.00015557,2]
[395294899,1764592239839,-500.0,0.0001559,2]
[395294900,1764592239848,-500.0,0.0001559,2]
[395294901,1764592239857,-620.16,0.0001559,2]
[395294902,1764592239866,-150.0,0.00015603,2]
[395294904,1764592239875,-2750.0,0.00015612,2]
[395294906,1764592239885,-2750.0,0.00015667,2]
[395294908,1764592239894,-1101.71365104,0.00015693,2]
[395294910,1764592239904,-298.98,0.00015721,2]
[395294912,1764592239914,-2750.0,0.00015722,2]
[395294914,1764592239923,-19064.52604398,0.00015771,2]
[395294916,1764592239933,-2750.0,0.00015777,2]
[395294918,1764592239943,-520.83324818,0.00015789,2]
[395294920,1764592239952,-500.0,0.00015789,2]
[395294922,1764592239962,-500.0,0.00015789,2]
[395294924,1764592239971,-500.0,0.00015789,2]
[395294926,1764592239981,-500.0,0.00015789,2]
[395294928,1764592239991,-202.5805669,0.00015789,2]
[395294930,1764592240000,-500.0,0.00015789,2]
[395294932,1764592240010,-500.0,0.00015789,2]
[395294934,1764592240019,-500.0,0.00015789,2]
[395294936,1764592240028,-500.0,0.00015789,2]
[395294938,1764592240038,-386.00822049,0.00015789,2]
[395294940,1764592240047,-500.0,0.00015789,2]
[395294942,1764592240056,-564.2,0.00015789,2]
[395294944,1764592240066,-500.0,0.00015789,2]
[395294946,1764592240075,-500.0,0.00015789,2]
[395294948,1764592240085,-500.0,0.00015789,2]
[395294950,1764592240094,-500.0,0.00015789,2]
[395294952,1764592240103,-571.55421177,0.00015789,2]
[395294954,1764592240112,-1410.86,0.0001579,2]
[395294956,1764592240122,-6926.78149823,0.00015793,2]
[395294958,1764592240131,-2223.21323629,0.00015807,2]
[395294960,1764592240141,-2750.0,0.00015832,2]
[395294962,1764592240150,-500.0,0.0001585,2]
[395294964,1764592240159,-500.0,0.0001585,2]
[395294966,1764592240168,-500.0,0.0001585,2]
[395294968,1764592240178,-500.0,0.0001585,2]
[395294971,1764592240187,-500.0,0.0001585,2]
[395294972,1764592240196,-500.0,0.0001585,2]
[395294973,1764592240205,-500.0,0.0001585,2]
[395294974,1764592240214,-160.09973475,0.0001585,2]
[395294975,1764592240224,-500.0,0.0001585,2]
[395294976,1764592240234,-570.14905858,0.0001585,2]
[395294977,1764592240244,-500.0,0.0001585,2]
[395294978,1764592240254,-500.0,0.0001585,2]
[395294979,1764592240263,-7342.43207902,0.00015868,2]
[395294980,1764592240272,-2750.0,0.00015887,2]
[395294981,1764592240282,-155.14228073,0.000159,2]
[395294982,1764592240291,-1946.71949434,0.000159,2]
[395294983,1764592240301,-663.95450204,0.000159,2]
[395294984,1764592240310,-2750.0,0.00015942,2]
[395294985,1764592240319,-500.0,0.00015973,2]
[395294986,1764592240328,-500.0,0.00015973,2]
[395294988,1764592240338,-500.0,0.00015973,2]
[395294989,1764592240347,-500.0,0.00015973,2]
[395294990,1764592240356,-500.0,0.00015973,2]
[395294991,1764592240365,-500.0,0.00015973,2]
[395294992,1764592240374,-280.35705212,0.00015973,2]
[395294993,1764592240384,-500.0,0.00015973,2]
[395294994,1764592240394,-500.0,0.00015973,2]
[395294995,1764592240403,-500.0,0.00015973,2]
[395294996,1764592240412,-502.99679593,0.00015973,2]
[395294997,1764592240421,-500.0,0.00015973,2]
[395294998,1764592240431,-160.09796136,0.00015973,2]
[395294999,1764592240440,-500.0,0.00015973,2]
[395295000,1764592240450,-500.0,0.00015973,2]
[395295001,1764592240459,-219.62013657,0.00015973,2]
[395295002,1764592240468,-500.0,0.00015973,2]
[395295003,1764592240477,-500.0,0.00015973,2]
[395295004,1764592240487,-501.4742826,0.00015973,2]
[395295005,1764592240496,-500.0,0.00015973,2]
[395295006,1764592240506,-500.0,0.00015973,2]
[395295007,1764592240515,-500.0,0.00015973,2]
[395295008,1764592240528,-502.46810807,0.00015973,2]
[395295009,1764592240538,-500.0,0.00015973,2]
[395295010,1764592240547,-500.0,0.00015973,2]
[395295011,1764592240557,-500.0,0.00015973,2]
[395295012,1764592240566,-500.0,0.00015973,2]
[395295013,1764592240576,-281.76890158,0.00015973,2]
[395295014,1764592240585,-500.0,0.00015973,2]
[395295015,1764592240594,-160.09574989,0.00015973,2]
[395295016,1764592240604,-183.87070732,0.00015973,2]
[395295017,1764592240613,-500.0,0.00015973,2]
[395295018,1764592240623,-500.0,0.00015973,2]
[395295019,1764592240632,-500.0,0.00015973,2]
[395295020,1764592240641,-533.88981491,0.00015995,2]
[395295021,1764592240651,-151.0,0.00015995,2]
[395295022,1764592240660,-151.0,0.00015995,2]
[395295023,1764592240670,-642.94,0.00015995,2]
[395295024,1764592240679,-19064.52604398,0.00015997,2]
[395295025,1764592240688,-151.0,0.00015997,2]
[395295026,1764592240697,-151.0,0.00015997,2]
[395295027,1764592240706,-151.0,0.00015997,2]
[395295028,1764592240715,-151.0,0.00015997,2]
[395295029,1764592240724,-2750.0,0.00015997,2]
[395295030,1764592240734,-209017.58828939,0.00016,2]
[395295031,1764592241055,-1952485.02695837,0.00016,4]
[395295032,1764592241070,-251.80538329,0.00016,4]
[395295033,1764592241081,-1157.83394336,0.00016,4]
[395295034,1764592241092,-1070.97291885,0.00016,4]
[395295035,1764592241102,-627.14977405,0.00016,4]
[395295036,1764592241113,-17200.2,0.00016,4]
[395295037,1764592241124,-868.80017451,0.00016,4]
[395295038,1764592241135,-2584.2,0.00016,4]
[395295039,1764592241383,-398.77120696,0.00015973,2]
[395295040,1764592241800,-1.7e-07,0.00015973,2]
[395295052,1764592243381,-1009.6283699,0.000159,2]
[395295053,1764592243391,-101.22879287,0.00015973,2]
[395295054,1764592243400,-500.0,0.00015973,2]
[395295055,1764592243409,-3418.78474537,0.00016,4]
[395295058,1764592245731,-243.91166984,0.00014867,2]
[395295059,1764592245741,-193.82333016,0.00016,4]
[395295060,1764592245893,-4156.83662609,0.00016,4]
[395295061,1764592245907,-461.16671406,0.00016,4]
[395295069,1764592261451,-511.28459694,0.00014867,2]
[395295070,1764592263541,-50.12031283,0.00014867,2]
[395295071,1764592263568,-144.87968717,0.00014867,2]
[395295073,1764592266609,-225.69316841,0.00014867,2]
[395295074,1764592268594,-50.73222563,0.00014867,2]
[395295075,1764592268618,-239.53130812,0.00014884,2]
[395295078,1764592291415,-500.0,0.00014867,2]
[395295079,1764592291436,-24.66017968,0.00014867,2]
[395295080,1764592292915,-211.90592584,0.00014867,2]
[395295081,1764592294977,-195.0,0.00014867,2]
[395295082,1764592299611,-185.95389448,0.00014867,2]
[395295083,1764592299633,-110.73905127,0.00014867,2]
[395295084,1764592301092,-162.2001373,0.00014867,2]
[395295085,1764592302608,-267.37104504,0.00014867,2]
[395295086,1764592306466,-179.49298606,0.00014867,2]
[395295087,1764592308547,-290.11800551,0.00014867,2]
[395295088,1764592310488,-262.93369499,0.00014867,2]
[395295095,1764592317863,-154.64698089,0.00014867,2]
[395295096,1764592319280,-355.3504846,0.00014867,2]
[395295097,1764592321328,-376.24202885,0.00014867,2]
[395295100,1764592323990,-500.0,0.00014867,2]
[395295101,1764592325509,-169.57375581,0.00014867,2]
[395295102,1764592327003,-576.55415386,0.00014867,2]
[395295103,1764592329631,-233.83244344,0.00014867,2]
[395295105,1764592333149,-231.27484438,0.00014867,2]
[395295106,1764592336251,-151.0,0.00014865,2]
[395295107,1764592336273,-210.14526761,0.00014867,2]
[395295108,1764592337919,-323.2852829,0.00014867,2]
[395295109,1764592340735,-310.59116725,0.00014867,2]
[395295110,1764592342482,-430.51636054,0.00014867,2]
[395295111,1764592344022,-178.7340626,0.00014867,2]
[395295112,1764592347327,-580.9119843,0.00014867,2]
[395295113,1764592349277,-216.54393805,0.00014867,2]
[395295114,1764592353299,-274.56713682,0.00014867,2]
[395295116,1764592356121,-244.07286003,0.00014867,2]
[395295117,1764592358212,-326.57291601,0.00014867,2]
[395295118,1764592359896,-605.57208177,0.00014768,2]
[395295119,1764592361390,-173.31590327,0.00014768,2]
[395295120,1764592364062,-269.69864076,0.00014768,2]
[395295121,1764592364084,-230.30135924,0.00014867,2]
[395295122,1764592365587,-210.0,0.00014867,2]
[395295123,1764592368487,-300.0,0.00014867,2]
[395295128,1764592383066,-257.75804325,0.00014867,2]
[395295129,1764592384995,-308.53943557,0.00014867,2]
[395295130,1764592397955,-500.0,0.00014768,2]
[395295131,1764592398968,-235.04893098,0.00014768,2]
[395295132,1764592400377,-186.52172814,0.00014768,2]
[395295133,1764592401937,-210.80702898,0.00014768,2]
[395295134,1764592404204,-323.63055821,0.00014768,2]
[395295135,1764592406149,-177.37586955,0.00014768,2]
[395295136,1764592409596,-192.77364343,0.00014768,2]
[395295137,1764592411639,-410.12204366,0.00014768,2]
[395295138,1764592414143,-302.63318054,0.00014768,2]
[395295139,1764592415661,-191.76204138,0.00014768,2]
[395295140,1764592418109,-193.23212059,0.00014768,2]
[395295141,1764592421165,-500.04843657,0.00014768,2]
[395295142,1764592422191,-457.82031977,0.00014768,2]
[395295143,1764592423645,-197.36681946,0.00014768,2]
[395295144,1764592425053,-294.78311205,0.00014768,2]
[395295145,1764592433318,-426.64653916,0.00014768,2]
[395295146,1764592435330,-210.0,0.00014768,2]
[395295148,1764592450362,-312.53239126,0.00014768,2]
[395295149,1764592452310,-220.86466532,0.00014768,2]
[395295150,1764592454352,-232.52418623,0.00014768,2]
[395295151,1764592455931,-306.74428038,0.00014768,2]
[395295152,1764592458941,-781.32769079,0.00014768,2]
[395295159,1764592502764,-189.33869254,0.00014767,2]
[395295160,1764592502787,-357.80100682,0.00014768,2]
[395295219,1764592562473,-403.44382434,0.00014768,2]
[395295220,1764592562498,-96.55617566,0.00014865,2]
[395295229,1764592651478,-426.22228213,0.00014768,2]
[395295231,1764592697586,-320.98135625,0.00014768,2]
[395295232,1764592699088,-170.30965916,0.00014768,2]
[395295233,1764592699111,-4.37434784,0.00014768,2]
[395295234,1764592701325,-233.22260581,0.00014768,2]
[395295235,1764592706074,-200.0,0.00014768,2]
[395295236,1764592709325,-268.47315334,0.00014768,2]
[395295237,1764592726524,-315.49651961,0.00013699,2]
[395295238,1764592728994,-333.31757537,0.00013699,2]
[395295239,1764592808303,3727.632585,7.945e-05,2]
[395295240,1764592863345,690.00282226,0.00012,30]
[395295373,1764593431863,-426.35728642,0.000135,2]
[395295374,1764593431873,-500.0,0.00013599,2]
[395295375,1764593431884,-839.50650591,0.00013699,2]
[395295376,1764593431895,-158.69349409,0.00013699,2]
[395295377,1764593431904,-300.0,0.00013819,2]
[395295378,1764593431913,-250.0,0.0001404,2]
[395295379,1764593431924,-300.0,0.00014152,2]
[395295380,1764593431938,-300.0,0.00014152,2]
[395295381,1764593431947,-200.0,0.00014256,2]
[395295382,1764593431956,-954.0,0.00014596,2]
[395295383,1764593431965,-300.0,0.00014596,2]
[395295384,1764593431974,-300.0,0.00014596,2]
[395295385,1764593431983,-8792.10793353,0.00014666,2]
[395295386,1764593431992,-802.8241354,0.00014668,2]
[395295387,1764593432001,-1174.4392212,0.00014746,2]
[395295388,1764593432010,-4419.53,0.00014755,2]
[395295389,1764593432018,-4419.53,0.00014755,2]
[395295390,1764593432028,-151.0,0.00014762,2]
[395295391,1764593432037,-239.23680054,0.00014764,2]
[395295392,1764593432047,-268.24210684,0.00014764,2]
[395295393,1764593432056,-170.2344812,0.00014764,2]
[395295394,1764593432065,-465.65172573,0.00014764,2]
[395295395,1764593432074,-261.03869714,0.00014764,2]
[395295396,1764593432083,-287.10219959,0.00014764,2]
[395295397,1764593432092,-9476.97350139,0.00014765,2]
[395295398,1764593432103,-545.34586689,0.00014765,2]
[395295399,1764593432128,-333.30653703,0.00014765,2]
[395295400,1764593432143,-68947.47681167,0.00014765,2]
[395295401,1764593432154,-69615.00482518,0.00014765,2]
[395295402,1764593432165,-192375.79521311,0.00014765,2]
[395295403,1764593432175,-820.7253007,0.00014765,2]
[395295404,1764593432194,-172707.43979148,0.00014765,2]
[395295406,1764593432204,-999.0,0.00014765,2]
[395295407,1764593432215,-262.82066988,0.00014765,2]
[395295414,1764593438023,-780.0,0.00014675,2]
[395295415,1764593438033,-15644.97356476,0.00014765,2]
[395295416,1764593438043,-4038.49465,0.00014765,2]
[395295417,1764593438082,-14048.00418043,0.00014765,2]
[395295418,1764593438092,-2022.0199825,0.00014765,2]
[395295419,1764593438163,-3111.707416,0.00014765,2]
[395295420,1764593438175,-650.0,0.00014765,2]